[Event "17th Paracin Open 2024"]
[Site "Paracin"]
[Date "2024.07.06"]
[Round "5.15"]
[White "Djukic, Nikola"]
[Black "Apoorv Kamble"]
[Result "1/2-1/2"]
[ECO "B78"]
[WhiteElo "2532"]
[BlackElo "2369"]
[Annotator "TA"]
[PlyCount "120"]
[EventDate "2024.07.02"]
[EventType "swiss"]
[EventCountry "SRB"]
[SourceTitle "playchess.com"]
[Source "ChessBase"]
[SourceQuality "1"]
[TimeControl "5400+30"]

{[%evp 38,120,83,72,77,70,91,47,48,28,49,43,81,43,34,25,25,26,37,26,90,0,0,0,18,27,40,31,40,5,14,0,13,8,12,8,29,31,37,33,202,207,239,109,72,119,79,81,65,92,296,282,358,358,337,338,353,357,337,343,344,14,14,16,14,14,18,14,26,26,26,0,0,-8,-8,-8,-8,-8,-8,-8,-8,-8,-8,-8,-8]} 1. e4 {[%emt 0:00:03]} c5 {[%emt 0:00:05]} 2. Nf3 {[%emt 0:00:08]} d6 {[%emt 0:00:04]} 3. d4 {[%emt 0:08:14]} cxd4 {[%emt 0:00:06]} 4. Nxd4 {[%emt 0:00:04]} Nf6 {[%emt 0:00:05]} 5. Nc3 {[%emt 0:00:06]} g6 {[%emt 0:00:04]} 6. Be3 {[%emt 0:00:04]} Bg7 {[%emt 0:00:04]} 7. f3 {[%emt 0:00:06]} O-O {[%emt 0:00:04]} 8. Qd2 {[%emt 0:00:06]} Nc6 {[%emt 0:00:04]} 9. Bc4 {[%emt 0:00:18]} Bd7 {[%emt 0:00:20]} 10. O-O-O {[%emt 0:00:08]} Ne5 {[%emt 0:00:02]} 11. Bb3 {[%emt 0:00:07]} Rc8 {[%emt 0:00:03]} 12. Kb1 {[%emt 0:00:05]} Re8 {[%emt 0:00:02]} 13. h4 {[%emt 0:00:19] B78: Sicilian Dragon: Yugoslav Attack, 9 Bc4 Bd7 10 0-0-0 Rc8.} h5 {[%emt 0:00:05]} 14. g4 {[%emt 0:00:29]} hxg4 {[%emt 0:00:07]} 15. h5 {[%emt 0:00:07]} Nxh5 {[%emt 0:00:04]} 16. Bh6 {[%emt 0:00:15]} Kh7 {[%emt 0:00:36]} 17. Bxg7 {[%emt 0:01:44]} Kxg7 {[%emt 0:00:04]} 18. fxg4 {[%emt 0:02:27]} Bxg4 {[%emt 0:00:15]} 19. Nf5+ {[%emt 0:01:17]} Bxf5 {[%emt 0:00:04]} 20. exf5 {[%emt 0:00:07]} Rh8 {[%emt 0:00:04]} 21. fxg6 {[%emt 0:00:31]} Nxg6 {[%emt 0:00:04]} 22. Qd5 {[%emt 0:01:25]} e6 {[%emt 0:02:36]} 23. Qd4+ {[%emt 0:00:08]} (23. Qxb7 {with more complications.} Qb6 24. Qf3 Qc6 25. Qe3) 23... Qf6 {[%emt 0:08:19]} 24. Qxa7 {[%emt 0:00:09]} d5 {[%emt 0:01:33]} 25. Qxb7 {[%emt 0:02:12]} Ng3 {[%emt 0:05:24]} 26. Rxh8 {[%emt 0:09:30]} Rxh8 {[%emt 0:00:09]} 27. a4 {[%emt 0:00:05]} Nf5 $146 {[%emt 0:23:00]} ({Predecessor:} 27... Qe5 28. Qd7 Ne4 29. Nxe4 dxe4 30. Rf1 Nf4 31. a5 Rf8 32. Qa4 Rd8 33. Bc4 e3 {½-½ Armani,G (2363)-Rauduve,A (2372) EU-ch 2022 sf08 email}) 28. Rf1 {[%emt 0:15:06]} Qe7 {[%emt 0:09:23] [#]} (28... Qe5 $11) 29. Qxe7 {[%emt 0:13:13]} (29. Qb6 $1 $16) 29... Ngxe7 {[%emt 0:01:02]} 30. Nb5 {[%emt 0:04:02]} Rd8 {[%emt 0:05:45]} 31. c3 {[%emt 0:00:30]} Nc6 {[%emt 0:12:16]} 32. Bc2 {[%emt 0:01:21]} Ne3 {[%emt 0:07:47]} 33. Rg1+ {[%emt 0:00:12]} Kf8 {[%emt 0:02:35]} 34. Bd3 {[%emt 0:01:18]} Nc4 {[%emt 0:07:19]} 35. b3 {[%emt 0:04:43]} N4e5 {[%emt 0:00:10]} 36. Be2 {[%emt 0:00:18]} f5 {[%emt 0:00:49]} 37. Kc2 {[%emt 0:14:10]} Kf7 {[%emt 0:01:47]} 38. b4 {[%emt 0:02:10]} f4 $2 {[%emt 0:05:55]} (38... Rh8 $14) 39. Rf1 $18 {[%emt 0:00:22]} Ng6 {[%emt 0:00:32] [#]} 40. Nd4 {[%emt 0:06:58]} (40. a5 e5 $16) (40. Bh5 $1 $18 {and White stays clearly on top.}) 40... Nce7 $16 {[%emt 0:01:27]} 41. Bg4 {[%emt 0:02:12]} e5 {[%emt 0:00:52]} 42. Ne6 {[%emt 0:00:07]} Rb8 {[%emt 0:02:40]} 43. a5 {[%emt 0:01:26]} Nc6 $2 {[%emt 0:00:33]} (43... Nh4 $16 {was necessary.}) 44. Nc7 $18 {[%emt 0:04:34]} Nge7 {[%emt 0:00:29]} 45. a6 {[%emt 0:00:31]} Na7 {[%emt 0:02:06]} 46. Rb1 {[%emt 0:01:20]} (46. Rd1 d4 47. Rb1 (47. cxd4 Rxb4 48. Be6+ Kf6 $14) 47... f3) 46... e4 {[%emt 0:01:41]} 47. b5 {[%emt 0:01:56]} Rb6 {[%emt 0:00:13]} 48. c4 {[%emt 0:02:53]} dxc4 {[%emt 0:02:25]} 49. Be2 $2 {[%emt 0:00:05]} (49. Kc3 $18) 49... Kf6 $11 {[%emt 0:01:19]} 50. Bxc4 {[%emt 0:00:06]} Ke5 {[%emt 0:00:50]} 51. Rd1 {[%emt 0:00:26]} f3 {[%emt 0:01:56]} 52. Rd7 {[%emt 0:02:34]} Nec8 {[%emt 0:00:26]} 53. Nd5 {[%emt 0:02:06]} Rd6 {[%emt 0:00:37]} 54. Rxd6 {[%emt 0:01:31]} (54. b6 $5 Nxb6 (54... Rxd7 $2 55. b7 $18) 55. Nxb6 (55. Rxa7 $2 Nxc4 56. Nb4 Ne3+ 57. Kb3 f2 $19) 55... Rxd7 56. Nxd7+ Kd4 57. Be6 $16) 54... Kxd6 {[%emt 0:00:14]} (54... Nxd6 $2 {perishes.} 55. b6 Nxc4 56. b7 $18) 55. b6 {[%emt 0:00:04]} Nxb6 {[%emt 0:00:20]} 56. Nxb6 {[%emt 0:00:05]} Kc5 {[%emt 0:00:10]} 57. Kd2 {[%emt 0:00:51]} Kxb6 {[%emt 0:00:09]} 58. Bd5 {[%emt 0:00:16]} Kxa6 {[%emt 0:00:18]} 59. Bxe4 {[%emt 0:00:07]} f2 {[%emt 0:00:04]} 60. Ke2 {[%emt 0:00:06]} f1=Q+ {[%emt 0:00:03]} 1/2-1/2

[Event "17th Paracin Open 2024"]
[Site "Paracin"]
[Date "2024.07.06"]
[Round "5.16"]
[White "Bhattacharyya Soham"]
[Black "Akhmedov, David"]
[Result "1/2-1/2"]
[ECO "E01"]
[WhiteElo "2477"]
[BlackElo "2293"]
[Annotator "TA"]
[PlyCount "182"]
[EventDate "2024.07.02"]
[EventType "swiss"]
[EventCountry "SRB"]
[SourceTitle "playchess.com"]
[Source "ChessBase"]
[SourceQuality "1"]
[TimeControl "5400+30"]

{[%evp 80,182,225,223,240,240,266,266,262,225,225,154,216,154,206,0,208,113,113,46,46,12,33,8,110,110,110,110,110,110,110,110,110,110,117,117,117,110,110,110,110,110,110,110,110,110,110,110,110,110,110,110,110,110,110,110,110,110,110,110,110,110,110,110,110,100,117,100,117,42,42,8,8,8,8,8,8,8,8,8,8,8,8,8,8,8,8,8,8,8,8,8,8,8,8,8,8,8,8,8,8,8,8,-8,-8]} 1. d4 {[%emt 0:00:50]} Nf6 {[%emt 0:00:20]} 2. c4 {[%emt 0:00:07]} e6 {[%emt 0:00:06]} 3. g3 {[%emt 0:00:43]} d5 {[%emt 0:00:06]} 4. Nf3 {[%emt 0:00:07]} h6 {[%emt 0:01:07]} 5. Bg2 {[%emt 0:01:02]} Bd6 {[%emt 0:00:04]} 6. O-O {[%emt 0:00:10] E01: Catalan: Early deviations.} O-O {[%emt 0:00:03]} 7. Nc3 {[%emt 0:04:30]} Nc6 {[%emt 0:00:17]} 8. b3 {[%emt 0:00:06]} dxc4 {[%emt 0:00:12]} 9. bxc4 {[%emt 0:00:06]} e5 {[%emt 0:00:02]} 10. Rb1 {[%emt 0:00:09] 10.e3 gains popularity.} Nxd4 {[%emt 0:10:44]} 11. Nxd4 {[%emt 0:00:18]} exd4 {[%emt 0:00:08]} 12. Qxd4 {[%emt 0:00:07]} c6 {[%emt 0:01:03]} 13. Rd1 {[%emt 0:00:37]} Bc7 $146 {[%emt 0:01:57]} ({Predecessor:} 13... Be7 14. Qe5 Nd7 15. Qh5 Nf6 16. Qe5 Nd7 17. Qf4 Qa5 18. Ne4 Ne5 19. Bd2 Qc7 {1-0 Ohanyan,E (2460)-Gukesh,D (2736) Chess.com U20 Speed blitz 2023 (1.6)}) 14. Qc5 {[%emt 0:01:48]} Nd7 {[%emt 0:00:07]} 15. Qh5 {[%emt 0:02:07]} Qe7 {[%emt 0:04:03]} 16. Rb3 {[%emt 0:07:16]} Qe5 {[%emt 0:04:41]} 17. Qh4 {[%emt 0:10:41]} Bd8 {[%emt 0:06:03]} 18. Qf4 {[%emt 0:00:29]} Qxf4 {[%emt 0:02:11]} 19. Bxf4 {[%emt 0:00:29]} Nc5 {[%emt 0:00:18]} 20. Bd6 {[%emt 0:23:12]} Nxb3 {[%emt 0:04:57]} 21. Bxf8 {[%emt 0:00:18]} Bf5 {[%emt 0:01:59]} 22. Bxg7 {[%emt 0:04:52]} Bc2 {[%emt 0:07:49]} 23. Rd7 {[%emt 0:02:34]} Bf5 {[%emt 0:00:04]} 24. Rd6 {[%emt 0:01:28]} Bc7 {[%emt 0:00:56]} 25. Rd1 {[%emt 0:00:10]} Kxg7 {[%emt 0:00:05]} 26. axb3 {[%emt 0:00:04]} Bc2 {[%emt 0:00:24]} 27. Rd7 {[%emt 0:00:29]} Be5 {[%emt 0:00:16]} 28. Ne4 {[%emt 0:01:33]} Bxb3 {[%emt 0:00:32]} 29. f4 {[%emt 0:00:16]} Bb8 {[%emt 0:03:52]} 30. Nd2 {[%emt 0:03:56]} Ba4 {[%emt 0:01:37]} 31. Rxb7 {[%emt 0:00:16]} a5 {[%emt 0:02:03]} 32. Ne4 {[%emt 0:09:06]} Bc2 {[%emt 0:02:39]} 33. Rb2 {[%emt 0:02:46]} Bxe4 {[%emt 0:01:48]} 34. Bxe4 {[%emt 0:00:06]} Ba7+ {[%emt 0:01:19]} 35. Kg2 {[%emt 0:00:17]} Rc8 {[%emt 0:02:33]} 36. Ra2 {[%emt 0:06:09]} Bb6 {[%emt 0:00:15]} 37. Kf3 {[%emt 0:01:42]} Kf6 {[%emt 0:02:27]} 38. g4 {[%emt 0:01:48]} Ke7 {[%emt 0:00:11]} 39. c5 {[%emt 0:00:06]} Bxc5 {[%emt 0:00:09]} 40. Rxa5 {[%emt 0:00:04]} Kd6 {[%emt 0:00:11]} 41. Ra6 {[%emt 0:00:06]} f6 {[%emt 0:00:49]} 42. h4 {[%emt 0:01:29]} Bd4 {[%emt 0:00:33]} 43. e3 {[%emt 0:02:13]} Bc5 {[%emt 0:00:04]} 44. Ke2 {[%emt 0:00:36]} Rc7 {[%emt 0:01:57]} 45. Kd3 {[%emt 0:01:50]} Kd7 {[%emt 0:00:29]} (45... Ke7 $16 46. Ke2 (46. Bxc6 Ra7 $16) 46... Kf8) 46. Bf5+ {[%emt 0:01:52]} Kd6 {[%emt 0:01:03]} (46... Ke7 $16 47. Ke2 Bb4) 47. Be4 {[%emt 0:01:25]} Kd7 $1 {[%emt 0:00:24]} 48. Bg2 {[%emt 0:00:25]} ({White should play} 48. h5 $18) 48... Ra7 $16 {[%emt 0:01:14]} 49. Rxc6 {[%emt 0:02:50]} (49. Bxc6+ $16 Ke7 50. Rxa7+ Bxa7 51. Ke4) 49... Ra3+ $14 {[%emt 0:00:04]} 50. Kc2 {[%emt 0:04:26]} Bd6 {[%emt 0:01:04]} 51. Kd2 {[%emt 0:01:09]} Ra2+ {[%emt 0:02:35]} (51... Bb4+ $1 $11 52. Kc1 (52. Ke2 Ra2+ 53. Kd3 Rxg2 $11) 52... Rxe3) 52. Rc2 $16 {[%emt 0:00:06]} Bb4+ {[%emt 0:00:51]} 53. Kd3 {[%emt 0:00:30]} Rxc2 54. Kxc2 {[%emt 0:00:02]} Be1 {[%emt 0:00:57]} 55. h5 {[%emt 0:00:02]} Ke7 {[%emt 0:00:28]} 56. Kd3 {[%emt 0:00:03]} Kf7 {[%emt 0:00:37]} 57. Bd5+ {[%emt 0:00:05]} Kg7 {[%emt 0:00:13]} 58. Ke4 {[%emt 0:00:02]} Bd2 {[%emt 0:00:22]} 59. Bc4 {[%emt 0:00:07]} Bc1 {[%emt 0:00:12]} 60. Kf3 {[%emt 0:00:25]} Bd2 {[%emt 0:00:31]} 61. Ke2 {[%emt 0:00:21]} Bc1 {[%emt 0:00:05]} 62. Bb3 {[%emt 0:00:04]} Kh8 {[%emt 0:00:12]} 63. Bc2 {[%emt 0:00:26]} Kg7 {[%emt 0:00:06]} 64. Bg6 {[%emt 0:00:03]} Kh8 {[%emt 0:00:33]} 65. Kd3 {[%emt 0:00:05]} Kg7 {[%emt 0:00:09]} 66. Be4 {[%emt 0:00:02]} Kh8 {[%emt 0:00:08]} 67. Bg2 {[%emt 0:00:17]} Kg7 {[%emt 0:00:15]} 68. Bd5 {[%emt 0:00:30]} Kh8 {[%emt 0:00:15]} 69. Ke4 {[%emt 0:00:14]} Kg7 {[%emt 0:00:05]} 70. Bc6 {[%emt 0:00:05]} Bd2 {[%emt 0:00:05]} 71. Kf3 {[%emt 0:00:10]} Bc1 {[%emt 0:00:15]} 72. e4 {[%emt 0:00:26]} Bd2 {[%emt 0:00:14]} 73. Bd7 {[%emt 0:00:12]} Bc1 {[%emt 0:00:13] [#]} 74. g5 {[%emt 0:01:01]} (74. e5 $1 $16) 74... hxg5 $14 {[%emt 0:00:12]} 75. e5 {[%emt 0:00:04]} Bxf4 {[%emt 0:01:11]} 76. e6 {[%emt 0:00:17]} Bd6 $1 {[%emt 0:00:03]} 77. Kg4 {[%emt 0:00:05]} Kh6 {[%emt 0:00:14]} 78. Be8 {[%emt 0:00:07]} Be7 {[%emt 0:00:20]} 79. Bg6 {[%emt 0:00:02]} Ba3 {[%emt 0:00:13]} 80. Bd3 {[%emt 0:00:05]} Bb4 {[%emt 0:00:07]} 81. Be2 {[%emt 0:00:03]} Ba3 {[%emt 0:00:13]} 82. Kf5 {[%emt 0:00:01]} Be7 {[%emt 0:00:07]} 83. Bg4 {[%emt 0:00:05]} Bd8 {[%emt 0:00:07]} 84. Ke4 {[%emt 0:00:05]} ({Much worse is} 84. e7 Bxe7 85. Ke6 Bd8 $15) 84... Be7 {[%emt 0:00:05]} 85. Be2 {[%emt 0:00:12]} Ba3 {[%emt 0:00:05]} 86. Kd5 {[%emt 0:00:32]} f5 {[%emt 0:00:30]} 87. Ke5 {[%emt 0:00:03]} g4 {[%emt 0:00:05]} 88. Kxf5 {[%emt 0:00:10]} g3 {[%emt 0:00:06]} 89. Bf3 {[%emt 0:00:04]} g2 {[%emt 0:00:05]} 90. Bxg2 {[%emt 0:00:03]} Kxh5 {[%emt 0:00:05]} 91. e7 {[%emt 0:00:05]} Bxe7 {[%emt 0:00:03]} 1/2-1/2

[Event "17th Paracin Open 2024"]
[Site "Paracin"]
[Date "2024.07.06"]
[Round "5.17"]
[White "Tilicheev, Viacheslav"]
[Black "Ivanov, Mikhail M"]
[Result "1/2-1/2"]
[ECO "D30"]
[WhiteElo "2477"]
[BlackElo "2248"]
[Annotator "TA"]
[PlyCount "84"]
[EventDate "2024.07.02"]
[EventType "swiss"]
[EventCountry "SRB"]
[SourceTitle "playchess.com"]
[Source "ChessBase"]
[SourceQuality "1"]
[TimeControl "5400+30"]

{[%evp 11,84,11,47,28,29,29,41,27,47,26,26,27,19,-2,6,-3,0,-26,-25,-29,0,-35,-35,-38,-39,-43,-36,-62,-69,-111,-129,-111,-95,-104,-120,-76,-54,-70,-74,-89,-34,-43,-52,-56,-41,-41,-41,-49,-56,-54,-30,-31,0,0,0,0,0,0,0,0,0,0,0,0,0,-8,-6,-8,0,0,0,0,0,0,0]} 1. d4 {[%emt 0:00:04]} d5 {[%emt 0:00:28]} 2. c4 {[%emt 0:00:10]} e6 {[%emt 0:00:07]} 3. Nf3 {[%emt 0:00:06]} c6 {[%emt 0:00:19]} 4. e3 {[%emt 0:00:09]} Nf6 {[%emt 0:01:58][%cal Bg8f6,Bf6e4,Be4d2][%mdl 32]} 5. Bd3 {[%emt 0:00:08]} Nbd7 {[%emt 0:00:34][%cal Bb8d7,Bd7f6,Bf6h5,Bh5g3][%mdl 32]} 6. O-O {[%emt 0:00:10]} Ne4 {[%emt 0:02:47]} 7. Nfd2 {[%emt 0:18:59]} f5 {[%emt 0:02:25]} 8. f3 {[%emt 0:04:58]} Nxd2 {[%emt 0:00:27]} 9. Nxd2 {[%emt 0:04:01] White is slightly better.} Nf6 {[%emt 0:00:33]} 10. b3 {[%emt 0:00:08]} Bd6 {[%emt 0:09:43]} 11. Bb2 {[%emt 0:05:47]} O-O {[%emt 0:03:42]} 12. h3 {[%emt 0:13:15]} Bd7 {[%emt 0:03:52]} 13. Qe1 {[%emt 0:06:51]} Nh5 {[%emt 0:04:17]} 14. g4 {[%emt 0:07:37]} Ng3 {[%emt 0:11:21]} 15. Rf2 $1 {[%emt 0:00:19]} h5 {[%emt 0:04:06]} 16. Rg2 {[%emt 0:09:25]} h4 {[%emt 0:00:55]} 17. f4 {[%emt 0:00:03]} fxg4 {[%emt 0:05:58] White must now prevent ...g5.} 18. Rxg3 {[%emt 0:01:54]} ({Don't play} 18. hxg4 g5 19. Nf3 gxf4 $17) 18... hxg3 {[%emt 0:00:27]} 19. Qxg3 {[%emt 0:00:05]} Qe7 {[%emt 0:14:40]} 20. Kh1 {[%emt 0:06:03]} Rf6 {[%emt 0:13:20] Threatens to win with ...Rh6.} 21. Be2 {[%emt 0:10:06]} Bb4 {[%emt 0:07:38]} (21... gxh3 {seems wilder.} 22. Rg1 Be8 23. Bd3 Bh5) 22. Nf1 {[%emt 0:00:25][%cal Bd2f1,Bf1h2,Bh2f3,Bf3g5][%mdl 32]} Rh6 {[%emt 0:00:59]} 23. Bxg4 {[%emt 0:00:40]} Qh4 {[%emt 0:00:28]} 24. Qxh4 {[%emt 0:01:03]} Rxh4 {[%emt 0:00:06]} 25. Nh2 {[%emt 0:00:05]} Bd6 {[%emt 0:00:54]} (25... Rh6 $17) 26. Nf3 $15 {[%emt 0:00:32]} Rh6 {[%emt 0:00:05]} 27. a4 {[%emt 0:02:00]} Be8 {[%emt 0:05:11]} 28. Ng5 {[%emt 0:02:26]} Bf7 {[%emt 0:00:09]} 29. Ba3 {[%emt 0:00:16]} Bxa3 {[%emt 0:01:17]} 30. Rxa3 {[%emt 0:00:05]} Re8 {[%emt 0:00:13]} 31. c5 {[%emt 0:02:15]} Bh5 {[%emt 0:03:35]} 32. Bxh5 {[%emt 0:00:12] The position is equal.} Rxh5 $11 {[%emt 0:00:05][%mdl 4096] Endgame. KRR-KRN} 33. b4 {[%emt 0:00:04]} e5 {[%emt 0:01:22]} 34. dxe5 {[%emt 0:00:40]} Rxe5 {[%emt 0:01:02]} 35. fxe5 {[%emt 0:00:09]} Rxg5 {[%emt 0:00:05] KR-KR} 36. b5 {[%emt 0:03:03]} Rxe5 {[%emt 0:00:19]} 37. bxc6 {[%emt 0:00:05]} bxc6 {[%emt 0:00:03]} 38. Rb3 {[%emt 0:00:05]} Re4 {[%emt 0:00:38]} 39. a5 {[%emt 0:01:54]} Rc4 {[%emt 0:01:24]} 40. Rb7 {[%emt 0:00:08]} a6 {[%emt 0:00:48]} 41. Rb6 {[%emt 0:00:19][%csl LRa6,LRc6]} Rxc5 {[%emt 0:00:05]} 42. Rxa6 {[%emt 0:00:04]} Rc3 {[%emt 0:00:35] Weighted Error Value: White=0.08 (flawless) /Black=0.09 (flawless) .  Mistake:       	---       	Black=1      Inaccurate:     	White=4     	Black=2      OK:         	White=15    	Black=12     Best:        	White=1     	Black=1      Strong:       	White=1     	---} 1/2-1/2

[Event "17th Paracin Open 2024"]
[Site "Paracin"]
[Date "2024.07.06"]
[Round "5.18"]
[White "Pikula, Dejan"]
[Black "Sedlak, Nikola"]
[Result "0-1"]
[ECO "C18"]
[WhiteElo "2303"]
[BlackElo "2426"]
[Annotator "TA"]
[PlyCount "94"]
[EventDate "2024.07.02"]
[EventType "swiss"]
[EventCountry "SRB"]
[SourceTitle "playchess.com"]
[Source "ChessBase"]
[SourceQuality "1"]
[TimeControl "5400+30"]

{[%evp 15,94,12,15,15,14,12,12,0,0,0,0,7,0,0,0,0,0,0,0,-16,0,0,0,-25,-31,-33,-26,-27,0,-51,-41,-54,-60,-81,-36,-61,-35,-80,-85,-94,-67,-60,-63,-68,-58,-59,-61,-102,-54,-129,-69,-171,-202,-192,-195,-300,-129,-180,-69,-206,-171,-289,-285,-266,-239,-535,-527,-547,-539,-547,-548,-544,-537,-591,-597,-571,-579,-598,-595,-567,-556]} 1. e4 {[%emt 0:00:06]} e6 {[%emt 0:00:05]} 2. d4 {[%emt 0:00:29]} d5 {[%emt 0:00:08]} 3. Nc3 {[%emt 0:00:14]} Bb4 {[%emt 0:00:14]} 4. e5 {[%emt 0:00:19]} c5 {[%emt 0:00:09]} 5. a3 {[%emt 0:00:09]} Bxc3+ {[%emt 0:00:09]} 6. bxc3 {[%emt 0:00:11]} Qa5 {[%emt 0:00:25]} 7. Bd2 {[%emt 0:01:09]} Qa4 {[%emt 0:00:08]} 8. Qb1 {[%emt 0:00:53]} c4 {[%emt 0:00:09]} 9. Qd1 {[%emt 0:00:16]} Ne7 {[%emt 0:00:52]} 10. h4 {[%emt 0:00:53]} Nbc6 {[%emt 0:00:34]} 11. h5 {[%emt 0:01:06] The position is equal.} h6 {[%emt 0:00:11]} 12. g3 {[%emt 0:01:16]} Bd7 {[%emt 0:01:06]} 13. Bh3 {[%emt 0:02:18]} O-O-O {[%emt 0:00:11]} 14. Nf3 {[%emt 0:03:16]} b6 {[%emt 0:02:35]} 15. Nh4 {[%emt 0:05:37]} Kb7 {[%emt 0:05:42]} 16. Kf1 {[%emt 0:03:56]} Rh7 {[%emt 0:02:34]} 17. Kg2 {[%emt 0:01:40]} Ng8 {[%emt 0:03:34]} 18. Re1 {[%emt 0:01:19]} Nce7 {[%emt 0:00:59]} 19. f4 {[%emt 0:09:07]} g6 {[%emt 0:03:54]} 20. hxg6 {[%emt 0:01:43]} Nxg6 {[%emt 0:01:46]} 21. Nf3 {[%emt 0:00:57]} Rf8 {[%emt 0:07:19]} 22. Kh2 {[%emt 0:08:44]} ({Better is} 22. Qb1 $11) 22... h5 $15 {[%emt 0:01:18]} 23. Ng5 {[%emt 0:05:07]} Rh8 {[%emt 0:00:12]} 24. Rf1 {[%emt 0:21:12]} Nh6 {[%emt 0:04:26][%cal Bg8h6,Bh6f5,Bf5g3][%mdl 32]} 25. Kg2 {[%emt 0:04:11]} Ne7 {[%emt 0:01:18]} 26. Rf2 {[%emt 0:03:06]} Nhf5 {[%emt 0:02:55]} 27. Kh2 {[%emt 0:01:07]} h4 {[%emt 0:04:50]} 28. g4 {[%emt 0:00:28]} Ng3 {[%emt 0:00:08]} 29. Be3 {[%emt 0:00:33]} f6 {[%emt 0:03:12]} 30. exf6 {[%emt 0:00:43]} Rxf6 {[%emt 0:00:08]} 31. Qd2 {[%emt 0:02:36]} Be8 {[%emt 0:02:10] Black is more active.} (31... Ng6 $17) 32. Rg1 {[%emt 0:01:00]} (32. Qe1 $15) 32... Bg6 {[%emt 0:00:51]} (32... Qxa3 $17 33. Qc1 Qd6 (33... Qxc3 34. Bd2 $14)) 33. Rxg3 {[%emt 0:00:13]} (33. Qe1 $15) 33... hxg3+ $19 {[%emt 0:00:21]} 34. Kxg3 {[%emt 0:00:06]} Qxa3 {[%emt 0:00:49]} 35. Re2 {[%emt 0:00:45]} (35. Qe1 $142) 35... Nc8 {[%emt 0:01:14]} (35... Qd6 $19 {And now ...a5 would win.} 36. Kf2 b5) 36. Bg2 {[%emt 0:00:23]} (36. Qe1 $17 {was called for.}) 36... Nd6 {[%emt 0:00:37]} (36... Qd6 $19 {Strongly threatening ...a5.} 37. Bf2 Ne7) 37. Bg1 {[%emt 0:02:50] White does not recover from this.} ({White should play} 37. Qe1 $1 $15) 37... Re8 {[%emt 0:03:08]} 38. Nxe6 {[%emt 0:02:00]} ({But not} 38. Rxe6 Rexe6 39. Nxe6 (39. Bxd5+ $2 {too greedy.} Kc8 $19) 39... Rxe6 $19 (39... Ne4+ 40. Bxe4 Bxe4 41. f5 $17)) (38. Qe3 $142 Rf5 39. Nxe6) 38... Ne4+ {[%emt 0:01:57]} 39. Bxe4 {[%emt 0:01:45]} Bxe4 {[%emt 0:00:07]} (39... Rexe6 $2 {is the wrong capture.} 40. Bxd5+ Rc6 41. Bxc6+ Rxc6 42. d5 $18) 40. Rxe4 {[%emt 0:00:07] [#]} (40. Ng5 {only move.}) 40... dxe4 {[%emt 0:00:28] Black is clearly winning.} 41. d5 {[%emt 0:00:23]} Qd6 {[%emt 0:00:37]} 42. Be3 {[%emt 0:00:45]} Rg8 {[%emt 0:00:52] White must now prevent ...Rfg6.} 43. Qd4 {[%emt 0:01:46]} Rfg6 {[%emt 0:01:03]} 44. Qxe4 {[%emt 0:01:21]} Rxg4+ {[%emt 0:00:11]} 45. Kf3 {[%emt 0:00:16]} Rg3+ {[%emt 0:02:49]} 46. Ke2 {[%emt 0:00:06]} Rg2+ {[%emt 0:00:16]} 47. Bf2 {[%emt 0:00:08]} Rh2 {[%emt 0:00:17] Weighted Error Value: White=0.46/Black=0.23 (precise) .  Missed win:     	---       	Black=1      Mistake:       	White=8     	Black=3      Inaccurate:     	White=2     	Black=3      OK:         	White=12    	Black=14     Best:        	White=2     	Black=3} 0-1